bitfinex/quotes_BTCUSD_20240823
["timestamp","ask_amount","ask_price","bid_price","bid_amount"]
[1724452098579,1.59758,64719.0,64717.0,0.309037]
[1724452098770,1.59758,64719.0,64718.0,0.61972701]
[1724452099065,1.59758,64719.0,64718.0,0.64272701]
[1724452099205,1.59758,64719.0,64718.0,1.09700379]
[1724452099614,1.59758,64719.0,64718.0,0.43369401]
[1724452099811,0.20551849,64738.0,64718.0,0.43369401]
[1724452099812,0.02421849,64738.0,64724.0,1.113564]
[1724452099996,0.1813,64758.0,64741.0,0.1402]
[1724452100212,0.1813,64758.0,64744.0,0.15617801]
[1724452100416,0.3382,64760.0,64752.0,0.31061301]
[1724452100615,0.1813,64766.0,64752.0,0.99694929]
[1724452100854,0.00828,64762.0,64752.0,1.038903]
[1724452101053,0.00828,64762.0,64752.0,0.730033]
[1724452101305,0.00828,64762.0,64752.0,1.038903]
[1724452101640,0.02420733,64760.0,64759.0,0.464255]
[1724452101820,0.00828,64762.0,64761.0,0.155413]
[1724452101971,0.00828,64762.0,64761.0,2.47005607]
[1724452102193,0.00828,64762.0,64761.0,2.15814211]
[1724452102454,0.00828,64762.0,64761.0,2.12709211]
[1724452102761,0.00828,64762.0,64761.0,2.15814211]
[1724452102920,0.003,64801.0,64780.0,0.771842]
[1724452102921,0.5195,64801.0,64780.0,0.771842]
[1724452103124,0.308677,64793.0,64780.0,0.15617801]
[1724452103327,0.0241975,64777.0,64767.0,0.308794]
[1724452103528,0.0241975,64777.0,64762.0,0.3433]
[1724452103529,0.154383,64774.0,64763.0,0.35082371]
[1724452103729,4.64917629,64762.0,64761.0,0.3015]
[1724452103959,4.80358729,64762.0,64761.0,0.011]
[1724452104135,4.64917629,64762.0,64747.0,0.001]
[1724452104338,4.64917629,64762.0,64746.0,0.46876099]
[1724452104537,5.11241029,64762.0,64761.0,0.014]
[1724452104778,5.73005629,64762.0,64761.0,0.014]
[1724452104965,0.154445,64748.0,64741.0,0.2905]
[1724452105166,4.95799929,64762.0,64747.0,0.15617801]
[1724452105167,4.67338297,64762.0,64747.0,0.15617801]
[1724452105487,0.154419,64759.0,64747.0,0.16817801]
[1724452105655,4.67338297,64762.0,64747.0,0.16817801]
[1724452105858,0.154418,64759.0,64747.0,0.15617801]
[1724452106185,4.67338297,64762.0,64747.0,0.15617801]
[1724452106387,0.308828,64761.0,64747.0,0.15617801]
[1724452106588,0.154426,64756.0,64747.0,0.15617801]
[1724452106819,0.154429,64755.0,64747.0,0.15617801]
[1724452107018,0.00386074,64761.0,64747.0,0.15617801]
[1724452107221,0.3382,64760.0,64741.0,0.01]
[1724452107422,0.1813,64753.0,64742.0,0.15617801]
[1724452107627,1.110482,64743.0,64742.0,0.15617801]
[1724452108036,0.154476,64735.0,64727.0,0.46876099]
[1724452108236,0.154476,64735.0,64728.0,0.15617801]
[1724452108717,0.801569,64743.0,64742.0,0.005]
[1724452108909,0.982869,64743.0,64742.0,0.005]
[1724452109113,0.308934,64739.0,64728.0,0.15617801]
[1724452109418,0.154477,64735.0,64728.0,0.17017801]
[1724452109591,0.154469,64738.0,64728.0,0.32467001]
[1724452109789,0.154471,64737.0,64728.0,0.17017801]
[1724452110008,0.15449,64729.0,64728.0,0.17017801]
[1724452110220,0.67399,64729.0,64728.0,0.014]
[1724452110399,0.67399,64729.0,64701.0,0.154555]
[1724452110400,0.154533,64711.0,64701.0,0.154555]
[1724452110702,0.51450003,64729.0,64701.0,0.154555]
[1724452110703,0.3382,64716.0,64710.0,0.15697885]
[1724452110911,0.3382,64716.0,64711.0,0.15617801]
[1724452111343,0.309047,64715.0,64711.0,0.15617801]
[1724452111564,0.309047,64715.0,64710.0,0.00080084]
[1724452111565,0.772665,64711.0,64710.0,0.00080084]
[1724452111974,1.110865,64711.0,64710.0,0.00080084]
[1724452112165,0.801799,64711.0,64710.0,0.00080084]
[1724452112371,0.3382,64711.0,64710.0,0.00080084]
[1724452113060,0.3382,64711.0,64710.0,0.15697885]
[1724452113355,0.3382,64711.0,64710.0,0.31151385]
[1724452113509,0.1813,64714.0,64713.0,0.154528]
[1724452113710,0.1813,64714.0,64713.0,0.15617801]
[1724452114322,0.5346,64728.0,64722.0,0.154506]
[1724452114517,0.5346,64728.0,64722.0,0.15617801]
[1724452114735,0.5346,64728.0,64713.0,0.023]
[1724452114944,0.5346,64728.0,64714.0,0.14867801]
[1724452114945,0.02808353,64727.0,64714.0,0.14867801]
[1724452115128,0.02422067,64727.0,64714.0,0.14867801]
[1724452115364,0.308995,64726.0,64714.0,0.14867801]
[1724452115565,0.02422067,64727.0,64714.0,0.14867801]
[1724452115771,0.02422067,64727.0,64720.0,0.15451]
[1724452116032,0.02422067,64727.0,64721.0,0.15617801]
[1724452116643,0.02422067,64727.0,64721.0,0.31068601]
[1724452116849,0.02422067,64727.0,64721.0,0.15617801]
[1724452117048,0.02422067,64727.0,64722.0,0.177506]
[1724452117198,0.02422067,64727.0,64723.0,0.15617801]
[1724452117576,0.17871667,64727.0,64724.0,0.023]
[1724452117744,0.17871667,64727.0,64725.0,0.15617801]
[1724452117745,0.154499,64726.0,64725.0,0.15617801]
[1724452117948,0.02422067,64727.0,64725.0,0.15617801]
[1724452118147,0.03122067,64727.0,64725.0,0.15617801]
[1724452118327,0.154499,64726.0,64716.0,0.154519]
[1724452118528,0.03122067,64727.0,64717.0,0.17917801]
[1724452118529,0.309001,64725.0,64717.0,0.17917801]
[1724452118958,0.154502,64724.0,64717.0,0.17917801]
[1724452119164,0.02422067,64727.0,64717.0,0.17917801]
[1724452119362,0.17871567,64727.0,64718.0,0.154515]
[1724452119687,0.17871567,64727.0,64719.0,0.17917801]
[1724452119917,0.154497,64726.0,64719.0,0.17917801]
[1724452120290,0.309001,64725.0,64719.0,0.17917801]
[1724452120495,0.02422067,64727.0,64719.0,0.17917801]
[1724452120702,0.02422067,64727.0,64721.0,0.154507]
[1724452120906,0.02422067,64727.0,64722.0,0.33368401]
[1724452121141,0.02422067,64727.0,64722.0,0.15617801]
[1724452121323,0.02422067,64727.0,64723.0,0.023]
[1724452121550,0.02422067,64727.0,64724.0,0.15617801]
[1724452121864,1e-08,64727.0,64725.0,0.023]
[1724452121996,0.5346,64728.0,64727.0,0.154495]
[1724452122199,0.5346,64728.0,64727.0,0.17917801]
[1724452122823,0.5346,64728.0,64722.0,0.001]
[1724452122824,0.154498,64726.0,64722.0,0.001]
[1724452123032,0.689094,64728.0,64723.0,0.15617801]
[1724452123236,0.5346,64728.0,64724.0,0.023]
[1724452123522,0.5346,64728.0,64725.0,0.15617801]
[1724452123740,0.5346,64728.0,64727.0,0.001]
[1724452124367,0.5346,64728.0,64725.0,0.15617801]
[1724452124770,0.5356,64728.0,64726.0,0.023]
[1724452124970,0.5356,64728.0,64727.0,0.15617801]
[1724452125169,0.5346,64728.0,64727.0,0.17917801]
[1724452125578,0.5346,64728.0,64727.0,0.33367301]
[1724452125771,0.5346,64728.0,64727.0,0.17917801]
[1724452126197,0.1899,64728.0,64727.0,0.33367301]
[1724452126396,0.1909,64728.0,64727.0,0.34767301]
[1724452126604,0.191725,64728.0,64727.0,0.17017801]
[1724452126852,0.191725,64728.0,64727.0,0.014]
[1724452127024,0.655202,64728.0,64727.0,0.014]
[1724452127450,0.191725,64728.0,64727.0,0.014]
[1724452128256,0.21594556,64728.0,64727.0,0.014]
[1724452129979,0.02604556,64728.0,64727.0,0.014]
[1724452131113,0.02604556,64728.0,64727.0,0.34767301]
[1724452131328,0.001825,64728.0,64727.0,1.06305301]
[1724452131529,0.001825,64728.0,64727.0,1.47204301]
[1724452131735,0.0242177,64747.0,64742.0,0.154459]
[1724452131937,0.0242177,64747.0,64742.0,0.95147301]
[1724452132150,0.0242177,64747.0,64742.0,1.60409101]
[1724452132348,0.33789155,64769.0,64742.0,1.60409101]
[1724452132349,0.308804,64766.0,64742.0,1.60409101]
[1724452132567,0.308752,64777.0,64742.0,1.60409101]
[1724452132568,0.02421166,64760.0,64742.0,1.70149101]
[1724452133404,0.02421166,64760.0,64742.0,2.09512772]
[1724452133607,0.308759,64776.0,64761.0,0.154413]
[1724452133838,0.308759,64776.0,64752.0,0.30887]
[1724452133839,0.3548,64764.0,64754.0,0.154429]
[1724452134042,0.3548,64764.0,64752.0,0.30887]
[1724452134043,0.1923,64761.0,64755.0,0.15617801]
[1724452134264,0.1923,64761.0,64756.0,0.023]
[1724452134465,0.1923,64761.0,64757.0,0.15617801]
[1724452134669,0.02420784,64772.0,64758.0,0.023]
[1724452134670,0.1923,64769.0,64758.0,0.023]
[1724452134877,0.1923,64769.0,64759.0,0.15617801]
[1724452135107,4.67338409,64762.0,64759.0,0.15617801]
[1724452135515,0.154414,64761.0,64759.0,0.15617801]
[1724452135722,4.76379709,64762.0,64759.0,0.15617801]
[1724452135920,4.60938409,64762.0,64759.0,0.15617801]
[1724452136116,0.00386043,64761.0,64759.0,0.15617801]
[1724452136364,4.60938409,64762.0,64759.0,0.15617801]
[1724452136564,0.3548,64760.0,64754.0,0.004]
[1724452136773,0.3548,64760.0,64744.0,0.154454]
[1724452136774,0.308856,64755.0,64744.0,0.154454]
[1724452136923,4.60938409,64762.0,64745.0,0.96242786]
[1724452137127,4.60938409,64762.0,64745.0,0.49057801]
[1724452137128,4.58517629,64762.0,64745.0,0.49057801]
[1724452137354,0.154429,64755.0,64746.0,0.154448]
[1724452137556,0.0242089,64758.0,64747.0,0.46507201]
[1724452137955,0.0242089,64758.0,64748.0,0.154443]
[1724452138182,0.0242089,64758.0,64749.0,0.15617801]
[1724452138426,0.154424,64757.0,64749.0,0.15617801]
[1724452138669,0.3548,64755.0,64749.0,0.15617801]
[1724452138846,0.3548,64755.0,64732.0,0.1]
[1724452138847,0.3089,64746.0,64732.0,0.1]
[1724452138982,0.308885,64749.0,64733.0,0.25617801]
[1724452139196,4.58517629,64762.0,64741.0,0.15617801]
[1724452139425,0.154418,64760.0,64747.0,0.308891]
[1724452139760,4.58517629,64762.0,64756.0,0.154424]
[1724452139976,4.58517629,64762.0,64751.0,0.308871]
[1724452139977,0.02421049,64757.0,64751.0,0.308871]
[1724452140167,0.02421049,64757.0,64756.0,0.154425]
[1724452140399,0.02421049,64757.0,64756.0,0.463276]
[1724452140597,0.02421049,64757.0,64756.0,1.203978]
[1724452140719,4.58517629,64762.0,64761.0,0.772067]
[1724452140916,4.58600129,64762.0,64761.0,1.59447201]
[1724452141132,4.58600129,64762.0,64761.0,1.69547201]
[1724452141375,4.58600129,64762.0,64761.0,2.10369901]
[1724452141729,4.58600129,64762.0,64761.0,2.18445247]
[1724452141953,4.58600129,64762.0,64761.0,2.10069901]
[1724452142156,4.58600129,64762.0,64761.0,1.79187201]
[1724452142571,4.58600129,64762.0,64761.0,1.28564501]
[1724452143121,4.58600129,64762.0,64761.0,1.59447201]
[1724452143324,4.58600129,64762.0,64761.0,0.95124501]
[1724452143466,4.58600129,64762.0,64761.0,0.96524501]
[1724452143666,4.58600129,64762.0,64761.0,0.65641801]
[1724452143875,4.58600129,64762.0,64761.0,0.95381801]
[1724452144076,4.58600129,64762.0,64761.0,1.28564501]
[1724452144282,4.58600129,64762.0,64761.0,1.60847201]
[1724452144683,4.58600129,64762.0,64761.0,2.43827947]
[1724452144865,4.58600129,64762.0,64761.0,2.28044914]
[1724452145077,4.58600129,64762.0,64761.0,1.85486868]
[1724452145286,4.58600129,64762.0,64761.0,1.80587201]
[1724452145481,4.58600129,64762.0,64761.0,1.79187201]
[1724452145936,4.58600129,64762.0,64761.0,1.80587201]
[1724452146165,4.58600129,64762.0,64761.0,2.11769901]
[1724452146411,4.58600129,64762.0,64761.0,2.61964247]
[1724452146649,4.58600129,64762.0,64761.0,2.32481547]
[1724452146837,4.58600129,64762.0,64761.0,2.63264247]
[1724452147147,4.58600129,64762.0,64761.0,2.30781547]
[1724452147502,4.58600129,64762.0,64761.0,2.26911201]
[1724452148707,4.58600129,64762.0,64761.0,2.25511201]
[1724452148911,4.58600129,64762.0,64761.0,2.22441547]
[1724452149152,4.58600129,64762.0,64761.0,2.17171201]
[1724452149356,4.58600129,64762.0,64761.0,0.78783101]
[1724452149558,4.58600129,64762.0,64761.0,0.77383101]
[1724452149766,4.61020437,64762.0,64761.0,0.63341801]
[1724452150422,4.76461537,64762.0,64761.0,0.46324]
[1724452150597,5.26573837,64762.0,64761.0,0.46324]
[1724452150816,5.57456137,64762.0,64761.0,0.47724]
[1724452151328,5.57456137,64762.0,64727.0,0.0009075]
[1724452151329,0.3548,64738.0,64727.0,0.0009075]
[1724452151459,0.154475,64736.0,64729.0,0.15617801]
[1724452151659,0.3548,64738.0,64729.0,0.15617801]
[1724452151660,0.154478,64734.0,64729.0,0.15617801]
[1724452151859,0.154479,64734.0,64729.0,0.15617801]
[1724452152088,0.17869223,64735.0,64729.0,0.15617801]
[1724452152284,0.02421723,64735.0,64729.0,0.15617801]
[1724452152627,0.02421723,64735.0,64734.0,0.92856801]
[1724452152825,4.58600129,64762.0,64734.0,0.92856801]
[1724452152826,0.3401,64758.0,64748.0,0.308888]
[1724452153111,0.02421687,64756.0,64750.0,0.154439]
[1724452153300,0.02421687,64756.0,64751.0,0.15617801]
[1724452153785,0.17864287,64756.0,64751.0,0.15617801]
[1724452154223,0.154434,64753.0,64751.0,0.15617801]
[1724452154352,0.308858,64755.0,64751.0,0.15617801]
[1724452154353,0.154428,64755.0,64751.0,0.15617801]
[1724452154764,0.02421687,64756.0,64751.0,0.15617801]
[1724452154765,0.154431,64754.0,64751.0,0.15617801]
[1724452154983,0.308857,64755.0,64749.0,0.46333]
[1724452155198,0.15444,64750.0,64749.0,0.46333]
[1724452156074,0.46332,64750.0,64749.0,0.46333]
[1724452156283,0.308864,64754.0,64749.0,0.46333]
[1724452156284,0.154435,64752.0,64749.0,0.46333]
[1724452156481,0.005,64750.0,64749.0,0.46333]
[1724452156905,0.02421687,64756.0,64749.0,0.46333]
[1724452157108,0.154431,64754.0,64749.0,0.46333]
[1724452157360,0.154431,64754.0,64749.0,0.42333]
[1724452157818,0.31272211,64754.0,64749.0,0.42333]
[1724452158067,0.02421687,64756.0,64749.0,0.42333]
[1724452158068,0.15444,64750.0,64749.0,0.42333]
[1724452158294,0.46332,64750.0,64749.0,0.42333]
[1724452158981,0.46332,64750.0,64749.0,0.42433]
[1724452159426,0.46332,64750.0,64749.0,0.42333]
[1724452159646,0.7732,64750.0,64749.0,0.42333]
[1724452159861,1.08208,64750.0,64749.0,0.42333]
[1724452160075,1.142,64750.0,64749.0,0.42333]
[1724452160535,1.3294,64750.0,64749.0,0.42333]
[1724452161197,1.63828,64750.0,64749.0,0.42333]
[1724452161436,1.3304,64750.0,64749.0,0.42333]
[1724452161616,1.79545801,64750.0,64749.0,0.42333]
[1724452161889,0.30893,64740.0,64727.0,0.0009075]
[1724452162120,0.308985,64728.0,64727.0,0.0009075]
[1724452162340,1.020677,64728.0,64727.0,0.0009075]
[1724452162555,1.329662,64728.0,64727.0,0.0009075]
[1724452162773,1.66286732,64728.0,64727.0,0.0009075]
[1724452163242,1.66286732,64728.0,64690.0,0.46976099]
[1724452163243,0.154533,64711.0,64699.0,0.46876099]
[1724452163499,0.833399,64711.0,64699.0,0.62332099]
[1724452163712,0.833399,64711.0,64696.0,0.318223]
[1724452163713,0.3698,64711.0,64696.0,0.318223]
[1724452163960,0.39402839,64711.0,64702.0,0.154553]
[1724452164165,0.39402839,64711.0,64697.0,0.46531001]
[1724452164166,0.02422839,64711.0,64710.0,0.154535]
[1724452164382,0.02422839,64711.0,64710.0,0.61978401]
[1724452164543,0.02422839,64711.0,64710.0,0.15617801]
[1724452165375,0.02422839,64711.0,64710.0,0.16217801]
[1724452165530,0.02522839,64711.0,64710.0,0.16217801]
[1724452168191,0.54956139,64711.0,64710.0,0.006]
[1724452168391,0.02522839,64711.0,64710.0,0.31671301]
[1724452168594,0.02522839,64711.0,64710.0,0.62578401]
[1724452168797,0.02522839,64711.0,64710.0,0.16217801]
[1724452168972,0.02522839,64711.0,64710.0,0.67064657]
[1724452168973,5.02522839,64711.0,64710.0,0.67064657]
[1724452169183,5.02522839,64711.0,64710.0,1.66058857]
[1724452169382,5.02522839,64711.0,64710.0,2.07903057]
[1724452169383,4.04955805,64711.0,64710.0,2.07903057]
[1724452169741,3.75092305,64711.0,64710.0,3.04281671]
[1724452169949,2.33433341,64711.0,64710.0,2.94939971]
[1724452170149,2.33433341,64711.0,64710.0,2.97356056]
[1724452170628,2.33433341,64711.0,64710.0,2.71730219]
[1724452171042,2.33433341,64711.0,64710.0,2.38407034]
[1724452171249,2.33433341,64711.0,64710.0,1.69227878]
[1724452171450,2.33433341,64711.0,64710.0,1.69127878]
[1724452171657,2.33433341,64711.0,64710.0,1.68727878]
[1724452171856,2.33533341,64711.0,64710.0,1.36320778]
[1724452172255,2.33433341,64711.0,64710.0,0.94613678]
[1724452172503,2.33433341,64711.0,64710.0,1.26620778]
[1724452172652,2.33533341,64711.0,64710.0,1.26620778]
[1724452173060,2.33433341,64711.0,64710.0,1.25520778]
[1724452173307,2.33533341,64711.0,64710.0,1.26620778]
[1724452173793,2.33533341,64711.0,64710.0,0.92620678]
[1724452173999,2.33533341,64711.0,64710.0,0.94920678]
[1724452175159,2.33533341,64711.0,64710.0,0.94420678]
[1724452175400,2.33533341,64711.0,64710.0,0.16635177]
[1724452175629,2.33533341,64711.0,64710.0,0.32088677]
[1724452175832,2.33533341,64711.0,64710.0,0.16635177]
[1724452175973,2.33533341,64711.0,64710.0,0.011]
[1724452176198,2.33533341,64711.0,64710.0,0.32171301]
[1724452176376,2.33433341,64711.0,64710.0,0.61978401]
[1724452176605,2.33433341,64711.0,64710.0,0.32471301]
[1724452176606,2.33533341,64711.0,64710.0,0.32471301]
[1724452177434,2.33533341,64711.0,64710.0,0.014]
[1724452177713,2.67123341,64711.0,64710.0,0.014]
[1724452177934,2.67123341,64711.0,64707.0,0.154542]
[1724452177935,2.67023341,64711.0,64707.0,0.154542]
[1724452178173,2.67023341,64711.0,64710.0,0.009]
[1724452178472,2.67123341,64711.0,64710.0,0.0009075]
[1724452178679,2.67023341,64711.0,64710.0,0.0009075]
[1724452179078,2.67123341,64711.0,64710.0,0.0009075]
[1724452179616,2.67023341,64711.0,64710.0,0.0009075]
[1724452179811,2.67123341,64711.0,64710.0,0.0099075]
[1724452180036,2.82576641,64711.0,64710.0,0.0099075]
[1724452180236,3.13483241,64711.0,64710.0,0.0099075]
[1724452180457,3.44389841,64711.0,64710.0,0.0099075]
[1724452180835,3.75296441,64711.0,64710.0,0.0099075]
[1724452181035,3.44389841,64711.0,64710.0,0.0099075]
[1724452182629,3.13483241,64711.0,64710.0,0.0099075]
[1724452182826,2.82576641,64711.0,64710.0,0.0099075]
[1724452183028,3.13483241,64711.0,64710.0,0.0099075]
[1724452183231,2.82576641,64711.0,64710.0,0.0099075]
[1724452183479,3.13483241,64711.0,64710.0,0.0099075]
[1724452183859,2.67123341,64711.0,64710.0,0.0099075]
[1724452184552,2.47123341,64711.0,64710.0,0.0099075]
[1724452184906,2.13533341,64711.0,64710.0,0.78422751]
[1724452185106,2.13533341,64711.0,64710.0,0.93876251]
[1724452186128,2.13533341,64711.0,64710.0,0.0099075]
[1724452186622,2.13533341,64711.0,64710.0,0.4735135]
[1724452186828,2.13533341,64711.0,64710.0,0.7825845]
[1724452187252,2.13533341,64711.0,64710.0,1.24783351]
[1724452187404,2.13533341,64711.0,64710.0,1.27083351]
[1724452188054,2.13533341,64711.0,64710.0,1.57990451]
[1724452188496,2.13533341,64711.0,64710.0,1.56490451]
[1724452188875,2.13433341,64711.0,64710.0,1.56490451]
[1724452189094,2.13533341,64711.0,64710.0,1.56490451]
[1724452190016,2.13533341,64711.0,64710.0,1.56581201]
[1724452190409,2.13615841,64711.0,64710.0,1.56581201]
[1724452190573,1.83380154,64711.0,64710.0,2.43756137]
[1724452190771,1.83380154,64711.0,64710.0,2.49149425]
[1724452190974,1.83380154,64711.0,64710.0,2.60197837]
[1724452191176,1.83380154,64711.0,64710.0,2.64941443]
[1724452191407,1.83280154,64711.0,64710.0,2.60397837]
[1724452191601,1.67826654,64711.0,64710.0,2.60397837]
[1724452191813,1.67926654,64711.0,64710.0,2.60397837]
[1724452192174,1.67826654,64711.0,64710.0,2.60397837]
[1724452192373,1.67826654,64711.0,64710.0,2.43956137]
[1724452192602,1.55563854,64711.0,64710.0,2.95293995]
[1724452192818,1.52473154,64711.0,64710.0,2.90743858]
[1724452193235,1.52373154,64711.0,64710.0,2.77723858]
[1724452193379,1.52473154,64711.0,64710.0,2.77723858]
[1724452193579,1.52473154,64711.0,64710.0,2.82273995]
[1724452193991,1.52473154,64711.0,64710.0,2.77915655]
[1724452194198,1.52473154,64711.0,64710.0,1.66533734]
[1724452194411,1.52473154,64711.0,64710.0,1.62187903]
[1724452194647,1.52373154,64711.0,64710.0,1.62187903]
[1724452195064,1.52473154,64711.0,64710.0,1.97788003]
[1724452195262,1.52473154,64711.0,64710.0,2.02149037]
[1724452195480,1.52473154,64711.0,64710.0,1.99732335]
[1724452195702,1.52373154,64711.0,64710.0,2.13048848]
[1724452195904,1.52473154,64711.0,64710.0,2.14448848]
[1724452196093,1.52473154,64711.0,64710.0,2.19001679]
[1724452196327,1.52473154,64711.0,64710.0,2.13048848]
[1724452196550,1.52373154,64711.0,64710.0,2.13048848]
[1724452196773,1.52373154,64711.0,64710.0,2.14448848]
[1724452197146,1.36919654,64711.0,64710.0,3.41231461]
[1724452197360,1.36919654,64711.0,64710.0,3.05670424]
[1724452197562,1.36919654,64711.0,64710.0,2.44339935]
[1724452197894,1.36919654,64711.0,64710.0,2.56421656]
[1724452198099,1.36919654,64711.0,64710.0,1.85890098]
[1724452198310,1.36919654,64711.0,64710.0,2.20142628]
[1724452198480,1.37019654,64711.0,64710.0,2.61060615]
[1724452198927,1.37019654,64711.0,64710.0,2.58544456]
[1724452199130,1.36919654,64711.0,64710.0,2.55876422]
[1724452199369,1.36919654,64711.0,64710.0,2.62955676]
[1724452199589,1.37019654,64711.0,64710.0,2.95262776]
[1724452199823,1.37019654,64711.0,64710.0,2.61010555]
[1724452200301,1.37019654,64711.0,64710.0,2.56447725]
[1724452200568,1.37019654,64711.0,64710.0,2.97542784]
[1724452200760,1.30838254,64711.0,64710.0,2.97546926]
[1724452200971,1.21566154,64711.0,64710.0,3.0418449]
[1724452201575,1.15284754,64711.0,64710.0,4.2529899]
[1724452201778,1.06012654,64711.0,64710.0,3.9976399]
[1724452202135,1.06012654,64711.0,64710.0,3.96690571]
[1724452202355,1.06112654,64711.0,64710.0,3.96690571]
[1724452202608,0.94810169,64711.0,64710.0,3.96690571]
[1724452202814,0.87455679,64711.0,64710.0,3.95290571]
[1724452203189,0.87455679,64711.0,64710.0,3.90636634]
[1724452203399,0.546,64744.0,64743.0,0.463369]
[1724452203686,0.546,64744.0,64743.0,0.61954701]
[1724452204633,0.546,64744.0,64743.0,0.92846001]
[1724452205101,0.547,64744.0,64743.0,0.94046001]
[1724452205560,0.547,64744.0,64743.0,0.012]
[1724452206307,0.547,64744.0,64743.0,0.475369]
[1724452206591,0.547,64744.0,64743.0,0.012]
[1724452206811,0.547,64744.0,64743.0,0.166456]
[1724452207059,0.547,64744.0,64743.0,0.475369]
[1724452207294,0.547,64744.0,64743.0,0.166456]
[1724452207773,0.547,64744.0,64743.0,0.012]
[1724452208534,0.547,64744.0,64732.0,0.308963]
[1724452208535,0.3485,64742.0,64721.0,0.4758]
[1724452208787,0.3485,64742.0,64712.0,0.003]
[1724452208788,0.5332,64734.0,64733.0,0.463441]
[1724452208991,0.5332,64734.0,64733.0,1.23754101]
[1724452209927,0.5332,64734.0,64733.0,1.26054101]
[1724452210734,0.3485,64734.0,64733.0,1.26054101]
[1724452211941,0.3485,64734.0,64733.0,0.95158001]
[1724452212152,0.3485,64734.0,64733.0,0.61961901]
[1724452212382,0.3485,64734.0,64731.0,0.308966]
[1724452212590,0.00386213,64733.0,64731.0,0.31066201]
[1724452213075,0.3485,64734.0,64728.0,0.154492]
[1724452213288,0.3485,64734.0,64731.0,0.154483]
[1724452213583,0.3485,64734.0,64729.0,0.154488]
[1724452213783,0.3485,64734.0,64728.0,0.308983]
[1724452214016,0.3485,64734.0,64730.0,0.154487]
[1724452214225,0.3485,64734.0,64728.0,0.308983]
[1724452214459,0.3495,64734.0,64733.0,0.003]
[1724452214877,0.3485,64734.0,64730.0,0.154486]
[1724452215079,0.3485,64734.0,64728.0,0.154492]
[1724452215271,0.3495,64734.0,64728.0,0.154492]
[1724452215474,0.5572,64732.0,64726.0,0.154496]
[1724452215629,0.0038625,64731.0,64722.0,0.46352]
[1724452215793,0.3661,64729.0,64722.0,0.46352]
[1724452215991,0.00386273,64728.0,64722.0,0.46352]
[1724452216199,0.00386273,64728.0,64722.0,0.45852]
[1724452216200,0.3661,64727.0,64722.0,0.45852]
[1724452216695,0.154498,64726.0,64722.0,0.45852]
[1724452216898,0.154498,64726.0,64722.0,0.25852]
[1724452216899,0.711704,64723.0,64722.0,0.25852]
[1724452217099,1.329722,64723.0,64722.0,0.25852]
[1724452217310,0.5572,64719.0,64701.0,0.309111]
[1724452217480,0.3661,64717.0,64701.0,0.309114]
[1724452217707,0.3661,64717.0,64706.0,0.309087]
[1724452217820,0.3661,64717.0,64703.0,0.3091]
[1724452218043,0.02422619,64714.0,64711.0,0.154532]
[1724452218256,0.02422619,64714.0,64704.0,0.15617801]
[1724452218466,0.02422619,64714.0,64710.0,0.154533]
[1724452219067,0.02422619,64714.0,64713.0,0.463584]
[1724452219264,0.02422619,64714.0,64713.0,0.61976201]
[1724452219467,0.02422619,64714.0,64713.0,0.92881801]
[1724452219672,0.02422619,64714.0,64713.0,1.23787401]
[1724452219869,0.02422619,64714.0,64713.0,0.92881801]
[1724452220099,0.02422619,64714.0,64713.0,0.95181801]
[1724452220500,0.02422619,64714.0,64713.0,1.26087401]
[1724452221885,0.02522619,64714.0,64713.0,1.26387401]
[1724452223275,0.02522619,64714.0,64713.0,0.95481801]
[1724452223676,0.02522619,64714.0,64713.0,1.26387401]
[1724452223905,0.02522619,64714.0,64713.0,0.95481801]
[1724452224104,0.02522619,64714.0,64713.0,1.26387401]
[1724452225467,0.02522619,64714.0,64713.0,0.93181801]
[1724452226950,0.39132619,64714.0,64713.0,0.003]
[1724452227091,0.39132619,64714.0,64713.0,0.157528]
[1724452227294,0.39132619,64714.0,64713.0,0.003]
[1724452227492,1.04600419,64714.0,64713.0,0.003]
[1724452227721,0.58242619,64714.0,64713.0,0.003]
[1724452227938,0.58242619,64714.0,64713.0,0.31370601]
[1724452228140,0.02522619,64714.0,64713.0,1.24087401]
[1724452228375,0.02422619,64714.0,64713.0,1.23787401]
[1724452228579,0.02422619,64714.0,64713.0,1.24187401]
[1724452228919,0.02422619,64714.0,64713.0,1.26487401]
[1724452229117,0.02422619,64714.0,64713.0,0.95581801]
[1724452229794,0.02422619,64714.0,64711.0,0.154532]
[1724452229994,0.02422619,64714.0,64712.0,0.15453]
[1724452229995,0.3661,64713.0,64712.0,0.15453]
[1724452230243,0.3661,64713.0,64712.0,0.772652]
[1724452230771,0.02422619,64714.0,64713.0,0.463584]
[1724452230977,0.02422619,64714.0,64713.0,1.23787401]
[1724452231388,0.02422619,64714.0,64713.0,1.26087401]
[1724452232590,0.02422619,64714.0,64712.0,0.004]
[1724452232992,0.02422619,64714.0,64699.0,0.04567157]
[1724452232993,0.00386356,64713.0,64709.0,0.154537]
[1724452233191,0.02422619,64714.0,64704.0,0.309098]
[1724452233427,0.02522619,64714.0,64713.0,0.004]
[1724452234033,0.02422619,64714.0,64711.0,0.154532]
[1724452234288,0.3802,64713.0,64709.0,0.004]
[1724452234486,0.3812,64713.0,64710.0,0.154534]
[1724452234897,0.3802,64713.0,64707.0,0.309084]
[1724452235107,0.3802,64713.0,64710.0,0.154535]
[1724452235310,0.1858,64711.0,64700.0,0.0009097]
[1724452235519,0.1858,64711.0,64705.0,0.154546]
[1724452235520,0.00386399,64710.0,64705.0,0.154546]
[1724452235726,0.1858,64711.0,64706.0,0.154545]
[1724452235942,0.1858,64711.0,64700.0,0.0009097]
[1724452235943,0.3802,64709.0,64700.0,0.0009097]
[1724452236151,0.3802,64707.0,64700.0,0.0009097]
[1724452236555,0.154548,64705.0,64700.0,0.0009097]
[1724452236768,0.3802,64703.0,64700.0,0.0009097]
[1724452236976,0.00386437,64702.0,64700.0,0.0009097]
[1724452238030,0.3802,64703.0,64700.0,0.0009097]
[1724452238332,0.001,64702.0,64700.0,0.0049097]
[1724452238893,0.3802,64703.0,64700.0,0.0009097]
[1724452239300,0.3812,64703.0,64700.0,0.0049097]
[1724452240497,0.00386436,64702.0,64700.0,0.0049097]
[1724452240715,1.338785,64701.0,64700.0,0.0049097]
[1724452240979,1.647899,64701.0,64700.0,0.0049097]
[1724452241389,1.338785,64701.0,64700.0,0.0009097]
[1724452241848,1.338785,64701.0,64700.0,0.0049097]